Workbook

Sheet Cover
B2: 3GPP TSG-RAN WG4 Meeting #111 | J2: R4-2407109
B3: Fukuoka City, JP, May 20-24, 2024
B5: Source: China Telecom
B6: Title: Summary of simulation results for Rel-18 NR coverage enhancements BS demodulation requirements
B7: Agenda: 7.17.2
B9: Reference: R4-2406137 WF on NR_cov_enh2_demod, China Telecom

Sheet Parameters
C2: Parameters for deriving performance requirements
C3: Ideal Span Threshold | D3: 2 | E3: dB
C4: Impairment Span Threshold | D4: 4 | E4: dB
B7: Notes | C7: 1. Call function DerivingPerfReq()
C8: 2. If the ruls does not apply, or fails, -100dB or less will be returned
D9: -100 | E9: Not enough input
D10: -101 | E10: Input should be pairs
D11: -102 | E11: Too large span for impairment
D12: -103 | E12: After removal iteration, not enough input

Sheet PRACH FR1 1T2R
A1: PRACH FR1 1T2R | C1: Propagation condition | D1: Frequency offset (Hz) | E1: Repetition Interval | F1: 38.104 req | G1: 38.141 req | H1: Nokia (R4-2407140) | J1: Ericsson (R4-2408346) | L1: Huawei (R4-2408957) | N1: ZTE (R4-2409082) | P1: Samsung (R4-2409475) | R1: Company 6 | T1: Company 7 | V1: SPAN | X1: AVERAGE
H2: Ideal | I2: Impairment | J2: Ideal | K2: Impairment | L2: Ideal | M2: Impairment | N2: Ideal | O2: Impairment | P2: Ideal | Q2: Impairment | R2: Ideal | S2: Impairment | T2: Ideal | U2: Impairment | V2: Ideal | W2: Impairment | X2: Ideal | Y2: Impairment
A3: Format A2 | B3: 15kHz | C3: AWGN | D3: 0 | E3: N/A | F3: =DerivingPerfReq(H3:U3) -> -100 | G3: =IF(F3>-100,F3+0.3,F3) -> -100 | H3: -18.8 | I3: -16.3 | L3: -17.3 | N3: -18.5 | P3: -16.85 | V3: =MAX(H3,J3,L3,N3,P3,R3,T3)-MIN(H3,J3,L3,N3,P3,R3,T3) -> 1.95 | W3: =MAX(I3,K3,M3,O3,Q3,S3,U3)-MIN(I3,K3,M3,O3,Q3,S3,U3) -> 0 | X3: =AVERAGE(H3,J3,L3,N3,P3,R3,T3) -> -17.8625 | Y3: =AVERAGE(I3,K3,M3,O3,Q3,S3,U3) -> -16.3
C4: TDLC300-100 Low | D4: 400 | E4: Repetition within 1 slot | F4: =DerivingPerfReq(H4:U4) -> -100 | G4: =IF(F4>-100,F4+0.6,F4) -> -100 | L4: -9.2 | V4: =MAX(H4,J4,L4,N4,P4,R4,T4)-MIN(H4,J4,L4,N4,P4,R4,T4) -> 0 | W4: =MAX(I4,K4,M4,O4,Q4,S4,U4)-MIN(I4,K4,M4,O4,Q4,S4,U4) -> 0 | X4: =AVERAGE(H4,J4,L4,N4,P4,R4,T4) -> -9.2 | Y4: =AVERAGE(I4,K4,M4,O4,Q4,S4,U4) -> 
E5: 1 slot | F5: -100 | G5: =IF(F5>-100,F5+0.6,F5) -> -100 | J5: -10.69 | V5: 0 | W5: 0 | X5: -10.69
E6: 5 slots | F6: =DerivingPerfReq(H6:U6) -> -100 | G6: =IF(F6>-100,F6+0.6,F6) -> -100 | J6: -12.18 | L6: -10.6 | N6: -11.1 | V6: =MAX(H6,J6,L6,N6,P6,R6,T6)-MIN(H6,J6,L6,N6,P6,R6,T6) -> 1.58 | W6: =MAX(I6,K6,M6,O6,Q6,S6,U6)-MIN(I6,K6,M6,O6,Q6,S6,U6) -> 0 | X6: =AVERAGE(H6,J6,L6,N6,P6,R6,T6) -> -11.29333333 | Y6: =AVERAGE(I6,K6,M6,O6,Q6,S6,U6) -> 
E7: 10ms | F7: =DerivingPerfReq(H7:U7) -> -100 | G7: =IF(F7>-100,F7+0.6,F7) -> -100 | J7: -12.64 | L7: -11 | N7: -11.2 | P7: -10.54 | V7: =MAX(H7,J7,L7,N7,P7,R7,T7)-MIN(H7,J7,L7,N7,P7,R7,T7) -> 2.1 | W7: =MAX(I7,K7,M7,O7,Q7,S7,U7)-MIN(I7,K7,M7,O7,Q7,S7,U7) -> 0 | X7: =AVERAGE(H7,J7,L7,N7,P7,R7,T7) -> -11.345 | Y7: =AVERAGE(I7,K7,M7,O7,Q7,S7,U7) -> 
B8: 30kHz | C8: AWGN | D8: 0 | E8: N/A | F8: -100 | G8: =IF(F8>-100,F8+0.3,F8) -> -100 | H8: -18.8 | I8: -16.3 | L8: -17.7 | N8: -18.5 | P8: -16.78 | V8: 2.02 | W8: 0 | X8: -17.945 | Y8: -16.3
C9: TDLC300-100 Low | D9: 400 | E9: Repetition within 1 slot | F9: =DerivingPerfReq(H9:U9) -> -100 | G9: =IF(F9>-100,F9+0.6,F9) -> -100 | L9: -9.5 | V9: =MAX(H9,J9,L9,N9,P9,R9,T9)-MIN(H9,J9,L9,N9,P9,R9,T9) -> 0 | W9: =MAX(I9,K9,M9,O9,Q9,S9,U9)-MIN(I9,K9,M9,O9,Q9,S9,U9) -> 0 | X9: =AVERAGE(H9,J9,L9,N9,P9,R9,T9) -> -9.5 | Y9: =AVERAGE(I9,K9,M9,O9,Q9,S9,U9) -> 
E10: 1 slot | F10: -100 | G10: -100 | J10: -11.24 | N10: -12.9 | V10: 1.66 | W10: 0 | X10: -12.07
E11: 10ms | F11: -100 | G11: =IF(F11>-100,F11+0.6,F11) -> -100 | J11: -12.83 | L11: -10.4 | N11: -11.5 | P11: -12.11 | V11: 2.43 | W11: 0 | X11: -11.71
A12: Format B4 | B12: 15kHz | C12: AWGN | D12: 0 | E12: N/A | F12: -100 | G12: =IF(F12>-100,F12+0.3,F12) -> -100 | H12: -23.5 | I12: -21 | L12: -20.2 | N12: -21.7 | P12: -21.62 | V12: 3.3 | W12: 0 | X12: -21.755 | Y12: -21
C13: TDLC300-100 Low | D13: 400 | E13: 1 slot | F13: =DerivingPerfReq(H13:U13) -> -100 | G13: =IF(F13>-100,F13+0.6,F13) -> -100 | J13: -14.95 | L13: -13.7 | V13: =MAX(H13,J13,L13,N13,P13,R13,T13)-MIN(H13,J13,L13,N13,P13,R13,T13) -> 1.25 | W13: =MAX(I13,K13,M13,O13,Q13,S13,U13)-MIN(I13,K13,M13,O13,Q13,S13,U13) -> 0 | X13: =AVERAGE(H13,J13,L13,N13,P13,R13,T13) -> -14.325 | Y13: =AVERAGE(I13,K13,M13,O13,Q13,S13,U13) -> 
E14: 5 slots | F14: -100 | G14: -100 | J14: -15.43 | L14: -13.3 | N14: -13 | V14: 2.43 | W14: 0 | X14: -13.91
E15: 10ms | F15: -100 | G15: =IF(F15>-100,F15+0.6,F15) -> -100 | J15: -15.72 | L15: -13.8 | N15: -14.7 | P15: -15.32 | V15: 1.92 | W15: 0 | X15: -14.885
B16: 30kHz | C16: AWGN | D16: 0 | E16: N/A | F16: -100 | G16: =IF(F16>-100,F16+0.3,F16) -> -100 | H16: -23.5 | I16: -21 | L16: -20.4 | N16: -21.7 | P16: -21.43 | V16: 3.1 | W16: 0 | X16: -21.7575 | Y16: -21
C17: TDLC300-100 Low | D17: 400 | E17: 1 slot | F17: =DerivingPerfReq(H17:U17) -> -100 | G17: =IF(F17>-100,F17+0.6,F17) -> -100 | J17: -15.66 | L17: -11.9 | N17: -17.1 | V17: =MAX(H17,J17,L17,N17,P17,R17,T17)-MIN(H17,J17,L17,N17,P17,R17,T17) -> 5.2 | W17: =MAX(I17,K17,M17,O17,Q17,S17,U17)-MIN(I17,K17,M17,O17,Q17,S17,U17) -> 0 | X17: =AVERAGE(H17,J17,L17,N17,P17,R17,T17) -> -14.88666667 | Y17: =AVERAGE(I17,K17,M17,O17,Q17,S17,U17) -> 
E18: 10ms | F18: -100 | G18: =IF(F18>-100,F18+0.6,F18) -> -100 | J18: -17.08 | L18: -13.2 | N18: -16 | P18: -16.58 | V18: 3.88 | W18: 0 | X18: -15.715
A19: Format C2 | B19: 15kHz | C19: AWGN | D19: 0 | E19: N/A | F19: -100 | G19: =IF(F19>-100,F19+0.3,F19) -> -100 | H19: -18.8 | I19: -16.3 | L19: -17.3 | N19: -18.6 | P19: -16.8 | V19: 2 | W19: 0 | X19: -17.875 | Y19: -16.3
C20: TDLC300-100 Low | D20: 400 | E20: Repetition within 1 slot | F20: =DerivingPerfReq(H20:U20) -> -100 | G20: =IF(F20>-100,F20+0.6,F20) -> -100 | L20: -9.1 | V20: =MAX(H20,J20,L20,N20,P20,R20,T20)-MIN(H20,J20,L20,N20,P20,R20,T20) -> 0 | W20: =MAX(I20,K20,M20,O20,Q20,S20,U20)-MIN(I20,K20,M20,O20,Q20,S20,U20) -> 0 | X20: =AVERAGE(H20,J20,L20,N20,P20,R20,T20) -> -9.1 | Y20: =AVERAGE(I20,K20,M20,O20,Q20,S20,U20) -> 
E21: 1 slot | F21: -100 | G21: =IF(F21>-100,F21+0.6,F21) -> -100 | J21: -10.63 | V21: 0 | W21: 0 | X21: -10.63
E22: 5 slots | F22: =DerivingPerfReq(H22:U22) -> -100 | G22: =IF(F22>-100,F22+0.6,F22) -> -100 | J22: -11.98 | L22: -10.6 | N22: -11.2 | V22: =MAX(H22,J22,L22,N22,P22,R22,T22)-MIN(H22,J22,L22,N22,P22,R22,T22) -> 1.38 | W22: =MAX(I22,K22,M22,O22,Q22,S22,U22)-MIN(I22,K22,M22,O22,Q22,S22,U22) -> 0 | X22: =AVERAGE(H22,J22,L22,N22,P22,R22,T22) -> -11.26 | Y22: =AVERAGE(I22,K22,M22,O22,Q22,S22,U22) -> 
E23: 10ms | F23: -100 | G23: =IF(F23>-100,F23+0.6,F23) -> -100 | J23: -12.26 | L23: -11 | N23: -11.3 | P23: -10.67 | V23: 1.59 | W23: 0 | X23: -11.3075
B24: 30kHz | C24: AWGN | D24: 0 | E24: N/A | F24: -100 | G24: =IF(F24>-100,F24+0.3,F24) -> -100 | H24: -18.8 | I24: -16.3 | L24: -17.7 | N24: -18.6 | P24: -16.69 | V24: 2.11 | W24: 0 | X24: -17.9475 | Y24: -16.3
C25: TDLC300-100 Low | D25: 400 | E25: Repetition within 1 slot | F25: -100 | G25: =IF(F25>-100,F25+0.6,F25) -> -100 | L25: -9.4 | V25: 0 | W25: 0 | X25: -9.4
E26: 1 slot | F26: =DerivingPerfReq(H26:U26) -> -100 | G26: =IF(F26>-100,F26+0.6,F26) -> -100 | J26: -10.84 | N26: -12.7 | V26: =MAX(H26,J26,L26,N26,P26,R26,T26)-MIN(H26,J26,L26,N26,P26,R26,T26) -> 1.86 | W26: =MAX(I26,K26,M26,O26,Q26,S26,U26)-MIN(I26,K26,M26,O26,Q26,S26,U26) -> 0 | X26: =AVERAGE(H26,J26,L26,N26,P26,R26,T26) -> -11.77 | Y26: =AVERAGE(I26,K26,M26,O26,Q26,S26,U26) -> 
E27: 10ms | F27: -100 | G27: =IF(F27>-100,F27+0.6,F27) -> -100 | J27: -12.96 | L27: -10.5 | N27: -11.5 | P27: -12.3 | V27: 2.46 | W27: 0 | X27: -11.815

Sheet PRACH FR2-1 1T2R
A1: PRACH FR2-1 1T2R | C1: Propagation condition | D1: Frequency offset (Hz) | E1: Repetition Interval | F1: 38.104 req | G1: 38.141 req | H1: Nokia (R4-2407140) | J1: Ericsson (R4-2408346) | L1: Huawei (R4-2408957) | N1: ZTE (R4-2409082) | P1: Samsung (R4-2409475) | R1: Company 6 | T1: Company 7 | V1: SPAN | X1: AVERAGE
H2: Ideal | I2: Impairment | J2: Ideal | K2: Impairment | L2: Ideal | M2: Impairment | N2: Ideal | O2: Impairment | P2: Ideal | Q2: Impairment | R2: Ideal | S2: Impairment | T2: Ideal | U2: Impairment | V2: Ideal | W2: Impairment | X2: Ideal | Y2: Impairment
A3: Format A2 | B3: 120kHz | C3: AWGN | D3: 0 | E3: N/A | F3: =DerivingPerfReq(H3:U3) -> -100 | G3: =IF(F3>-100,F3+0.3,F3) -> -100 | H3: -18.8 | I3: -16.1 | L3: -17.3 | N3: -18.6 | P3: -16.7 | V3: =MAX(H3,J3,L3,N3,P3,R3,T3)-MIN(H3,J3,L3,N3,P3,R3,T3) -> 2.1 | W3: =MAX(I3,K3,M3,O3,Q3,S3,U3)-MIN(I3,K3,M3,O3,Q3,S3,U3) -> 0 | X3: =AVERAGE(H3,J3,L3,N3,P3,R3,T3) -> -17.85 | Y3: =AVERAGE(I3,K3,M3,O3,Q3,S3,U3) -> -16.1
C4: TDLA30-300 Low | D4: 4000 | E4: Repetition within 1 slot | F4: -100 | G4: =IF(F4>-100,F4+0.6,F4) -> -100 | L4: -9.2 | V4: 0 | W4: 0 | X4: -9.2
E5: 1 slot | F5: -100 | G5: -100 | J5: -11.02 | V5: 0 | W5: 0 | X5: -11.02
E6: 5 slots | F6: =DerivingPerfReq(H6:U6) -> -100 | G6: =IF(F6>-100,F6+0.6,F6) -> -100 | V6: =MAX(H6,J6,L6,N6,P6,R6,T6)-MIN(H6,J6,L6,N6,P6,R6,T6) -> 0 | W6: =MAX(I6,K6,M6,O6,Q6,S6,U6)-MIN(I6,K6,M6,O6,Q6,S6,U6) -> 0 | X6: =AVERAGE(H6,J6,L6,N6,P6,R6,T6) ->  | Y6: =AVERAGE(I6,K6,M6,O6,Q6,S6,U6) -> 
E7: 10 slots | F7: -100 | G7: -100 | J7: -11.64 | N7: -11.2 | V7: 0.44 | W7: 0 | X7: -11.42
E8: 10ms | F8: =DerivingPerfReq(H8:U8) -> -100 | G8: =IF(F8>-100,F8+0.6,F8) -> -100 | N8: -11.7 | P8: -11.81 | V8: =MAX(H8,J8,L8,N8,P8,R8,T8)-MIN(H8,J8,L8,N8,P8,R8,T8) -> 0.11 | W8: =MAX(I8,K8,M8,O8,Q8,S8,U8)-MIN(I8,K8,M8,O8,Q8,S8,U8) -> 0 | X8: =AVERAGE(H8,J8,L8,N8,P8,R8,T8) -> -11.755 | Y8: =AVERAGE(I8,K8,M8,O8,Q8,S8,U8) -> 
A9: Format B4 | C9: AWGN | D9: 0 | E9: N/A | F9: -100 | G9: =IF(F9>-100,F9+0.3,F9) -> -100 | H9: -23.5 | I9: -20.8 | L9: -19.5 | N9: -21.7 | P9: -20.9 | V9: 4 | W9: 0 | X9: -21.4 | Y9: -20.8
C10: TDLA30-300 Low | D10: 4000 | E10: 1 slot | F10: -100 | G10: =IF(F10>-100,F10+0.6,F10) -> -100 | J10: -13.13 | V10: 0 | W10: 0 | X10: -13.13
E11: 5 slots | F11: -100 | G11: -100 | V11: 0 | W11: 0
E12: 10 slots | F12: -100 | G12: -100 | J12: -14.97 | L12: -11.2 | N12: -14 | V12: 3.77 | W12: 0 | X12: -13.39
E13: 10ms | F13: -100 | G13: -100 | N13: -14.3 | P13: -15.45 | V13: 1.15 | W13: 0 | X13: -14.875
A14: Format C2 | C14: AWGN | D14: 0 | E14: N/A | F14: -100 | G14: =IF(F14>-100,F14+0.3,F14) -> -100 | H14: -18.8 | I14: -16.1 | L14: -17.4 | N14: -18.6 | P14: -16.61 | V14: 2.19 | W14: 0 | X14: -17.8525 | Y14: -16.1
C15: TDLA30-300 Low | D15: 4000 | E15: Repetition within 1 slot | F15: =DerivingPerfReq(H15:U15) -> -100 | G15: =IF(F15>-100,F15+0.6,F15) -> -100 | L15: -9.2 | V15: =MAX(H15,J15,L15,N15,P15,R15,T15)-MIN(H15,J15,L15,N15,P15,R15,T15) -> 0 | W15: =MAX(I15,K15,M15,O15,Q15,S15,U15)-MIN(I15,K15,M15,O15,Q15,S15,U15) -> 0 | X15: =AVERAGE(H15,J15,L15,N15,P15,R15,T15) -> -9.2 | Y15: =AVERAGE(I15,K15,M15,O15,Q15,S15,U15) -> 
E16: 1 slot | F16: -100 | G16: -100 | J16: -10.59 | V16: 0 | W16: 0 | X16: -10.59
E17: 5 slots | F17: -100 | G17: -100 | V17: 0 | W17: 0
E18: 10 slots | F18: -100 | G18: -100 | J18: -11.86 | L18: -8.6 | N18: -11.2 | V18: 3.26 | W18: 0 | X18: -10.55333333
E19: 10ms | F19: -100 | G19: -100 | N19: -11.7 | P19: -11.69 | V19: 0.01 | W19: 0 | X19: -11.695
